{"text_format":"1","workbook":"xlsx","n_sheets":1,"sheets":["Kleinmaßnahmen"],"not_rendered":{"charts":0,"images":0,"macros":1,"external_links":0,"defined_names":1,"comments":1,"pivot_tables":0},"unopened":[],"bounds":{"document_bytes":16777216,"sheet_cells":100000,"rows_first":2000,"rows_last":500,"rows_between":2000,"halvings":0,"cell_chars":16384,"cell_head_chars":4096},"cells_cut":0,"cells_raw":0,"read":"whole","date_system":"1900"}

{"sheet":"Kleinmaßnahmen","index":0,"n_rows":112,"n_cols":19,"rows_kept":112,"cut":false,"hidden":false,"merged":[[55,4,55,5],[55,6,55,7],[55,14,55,15],[55,16,55,17],[57,4,57,5],[38,14,38,15],[62,16,62,17],[77,14,77,15],[72,6,72,7],[72,16,72,17],[59,4,59,5],[59,6,59,7],[59,14,59,15],[59,16,59,17],[113,12,113,14],[113,2,113,4],[113,6,113,7],[113,16,113,17],[93,2,93,6],[93,7,93,8],[93,12,93,16],[93,17,93,18],[94,2,94,6],[94,7,94,8],[94,12,94,16],[94,17,94,18],[108,4,108,7],[108,14,108,17],[106,2,106,3],[106,4,106,8],[106,12,106,13],[104,2,104,8],[106,14,106,18],[101,12,101,18],[32,5,32,6],[32,15,32,16],[51,2,51,8],[51,12,51,18],[53,4,53,5],[53,6,53,7],[34,5,34,8],[46,4,46,5],[46,7,46,8],[46,14,46,15],[46,17,46,18],[42,4,42,5],[42,7,42,8],[42,14,42,15],[42,17,42,18],[38,7,38,8],[38,4,38,5],[38,17,38,18],[34,15,34,18],[53,14,53,15],[53,16,53,17],[3,6,3,8],[3,16,3,18],[4,3,4,8],[4,13,4,18],[10,1,10,6],[19,1,19,6],[12,1,12,6],[14,1,14,6],[15,1,15,6],[24,4,24,5],[24,7,24,8],[24,14,24,15],[17,1,17,6],[24,17,24,18],[105,2,105,8],[105,12,105,18],[82,14,82,15],[82,4,82,5],[100,12,100,18],[100,2,100,8],[101,2,101,8],[57,6,57,7],[57,14,57,15],[57,16,57,17],[64,6,64,7],[64,16,64,17],[62,4,62,5],[62,6,62,7],[62,14,62,15],[28,5,28,8],[28,15,28,18],[30,5,30,8],[30,15,30,18],[83,12,83,18],[89,7,89,8],[89,12,89,16],[89,17,89,18],[77,17,77,18],[77,4,77,5],[77,7,77,8],[90,2,90,6],[90,7,90,8],[90,12,90,16],[90,17,90,18],[89,2,89,6],[82,7,82,8],[82,17,82,18],[83,2,83,8],[91,2,91,6],[91,7,91,8],[91,12,91,16],[91,17,91,18],[92,2,92,6],[92,7,92,8],[92,12,92,16],[92,17,92,18],[102,2,102,8],[102,12,102,18]]}
[null,null,"    (Kleinmaßnahmen - nur im Privatwald)"]
[]
[]
[null,"  zum Antrag vom",null,null,null,null,null,null,null,null,null,"  zum Verwendungsnachweis vom"]
[null,"  Antragsteller",null,null,null,null,null,null,null,null,null,"  Antragsteller",null,{"$f":"IF(ISBLANK(D5),\" \",D5)","v":" "}]
[]
[]
[]
[null,null,null,null,null,null,null,"Zutr. bitte ankreuzen",null,null,null,null,null,null,"ja",null,"nein"]
[]
[null,"  Nr. 2.1.2.5 oder Nr. 5.1.4 PKW-RL (Einzelschutz)",null,null,null,null,null,null,null,null,null,null,{"$f":"IF($H$11=\"x\",\"  Maßnahnme durchgeführt?\",\"\")","v":""}]
[]
[null,"  Nr. 2.1.2.5 oder Nr. 5.1.4 PKW-RL (Wildschutzzäune)",null,null,null,null,null,null,null,null,null,null,{"$f":"IF($H$13=\"x\",\"  Maßnahnme durchgeführt?\",\"\")","v":""}]
[]
[null,"  Nr. 2.1.3.6 PKW-RL (Wertausgleich für eingeschränkte",null,null,null,null,null,null,null,null,null,null,{"$f":"IF($H$15=\"x\",\"  Maßnahnme durchgeführt?\",\"\")","v":""}]
[null,"  oder vorgegebene Baumartenwahl)"]
[]
[null,"  Nr. 2.1.3.7 PKW-RL (Hiebsunreifeentschädigung)",null,null,null,null,null,null,null,null,null,null,{"$f":"IF($H$18=\"x\",\"  Maßnahnme durchgeführt?\",\"\")","v":""}]
[]
[null,"  Nr. 2.1.4 PKW-RL (Anlage von Weisergattern)",null,null,null,null,null,null,null,null,null,null,{"$f":"IF($H$20=\"x\",\"  Maßnahnme durchgeführt?\",\"\")","v":""}]
[]
[null,"  I. ANTRAGSDATEN",null,null,null,null,null,null,null,null,null,"  I. VERWENDUNGSNACHWEISDATEN"]
[null,"  (Art, Ort, Umfang, Durchf.-Zeitraum, Flächenermittlungsverfahren)",null,null,null,null,null,null,null,null,null,"  (Art, Ort, Umfang, Durchf.-Zeitraum, Flächenermittlungsverfahren)"]
[]
[null,"  Durchführungszeitraum von …",null,null,null,null,"bis …",null,null,null,null,"  Durchführungszeitraum von …",null,null,null,null,"bis …"]
[]
[null,null,null,null,null,null,null,null,null,null,null,"  Durchführung wie geplant",null,null,null,null,"(ja = J, nein = N)"]
[]
[null,"  Gemarkung   ",null,null,null,null,null,null,null,null,null,"  Gemarkung  ",null,null,null,{"$f":"IF(ISBLANK(F29),\" \",IF($P$27=\"J\",F29,IF($P$27=\"T\",F29,\" \")))","v":" "}]
[]
[null,"  Flur / Flurst.",null,null,null,null,null,null,null,null,null,"  Flur / Flurst.",null,null,null,{"$f":"IF(ISBLANK(F31),\" \",IF($P$27=\"J\",F31,IF($P$27=\"T\",F31,\" \")))","v":" "}]
[]
[null,"  Flächengröße",null,null,null,null,null,"  ha",null,null,null,"  Flächengröße",null,null,null,{"$f":"IF(ISBLANK(F33),\" \",IF($P$27=\"J\",F33,IF($P$27=\"T\",F33,\" \")))","v":" "},null,"  ha"]
[]
[null,"  Flächenermittlungsverfahren",null,null,null,null,null,null,null,null,null,"  Flächenermittlungsverfahren",null,null,null,{"$f":"IF(ISBLANK(F35),\" \",IF($P$27=\"J\",F35,IF($P$27=\"T\",F35,\" \")))","v":" "}]
[]
[]
[null,null,"Nr. 2.1.2.5 oder Nr. 5.1.4 PKW-RL:",null,null,null,null,null,null,null,null,null,"Nr. 2.1.2.6 oder Nr. 5.1.4 PKW-RL:"]
[null,null,"Einzelschutz / je Pflanze:",null,null,null,"  St.",{"$f":"IF(ISBLANK(E39),\"\",3.5*E39)","v":""},null,null,null,null,"Einzelschutz / je Pflanze:",null,{"$f":"IF($P$27=\"J\",E39,\" \")","v":" "},null,"  St.",{"$f":"IF(O39=\" \",\" \",3.5*O39)","v":" "}]
[]
[]
[null,"  Nr. 2.1.2.5 oder Nr. 5.1.4 PKW-RL:",null,null,null,null,null,null,null,null,null,"  Nr. 2.1.2.5 oder Nr. 5.1.4 PKW-RL:"]
[null,"  Einzelschutz / chemisch:",null,null,null,null,"  kg",{"$f":"IF(ISBLANK(E43),\"\",10*E43)","v":""},null,null,null,"  Einzelschutz / chemisch:",null,null,{"$f":"IF($P$37=\"J\",E43,\" \")","v":" "},null,"  kg",{"$f":"IF(O43=\" \",\"\",10*O43)","v":""}]
[]
[]
[null,null,"Nr. 2.1.2.5 oder Nr. 5.1.4 PKW-RL:",null,null,null,null,null,null,null,null,null,"Nr. 2.1.2.6 oder Nr. 5.1.4 PKW-RL:"]
[null,null,"Wildschutzzaun in lfd. M.:",null,null,null,"lfdm.",{"$f":"IF(ISBLANK(E47),\"\",7.5*E47)","v":""},null,null,null,null,"Wildschutzzaun in lfd. M.:",null,{"$f":"IF($P$27=\"J\",E47,\" \")","v":" "},null,"  lfdm.",{"$f":"IF(O47=\" \",\" \",7.5*O47)","v":" "}]
[]
[]
[null,null,"Nr. 2.1.3.6 PKW-RL:",null,null,null,null,null,null,null,null,null,"Nr. 2.1.3.6 PKW-RL:"]
[null,null,"Wertausgleich",null,null,null,null,null,null,null,null,null,"Wertausgleich"]
[null,null,"-----------------------------------------------------------------------------------------------------",null,null,null,null,null,null,null,null,null,"-----------------------------------------------------------------------------------------------------"]
[null,null,"bei Buche / Eiche:",null,null,null,null,null,null,null,null,null,"bei Buche / Eiche:"]
[null,null,"Ertragsklasse III,5 und darunter",null,"1.400 EUR / ha",null,null,null,"  ha",null,null,null,"Ertragsklasse III,5 und darunter",null,"1.400 EUR / ha",null,{"$f":"IF($P$27=\"J\",G54,\"\")","v":""},null,"  ha"]
[]
[null,null,"Ertragsklasse II,5 bis III,5",null,"1.270 EUR / ha",null,null,null,"  ha",null,null,null,"Ertragsklasse II,5 bis III,5",null,"1.270 EUR / ha",null,{"$f":"IF($P$27=\"J\",G56,\"\")","v":""},null,"  ha"]
[]
[null,null,"Ertragsklasse II,0",null,"1.130 EUR / ha",null,null,null,"  ha",null,null,null,"Ertragsklasse II,0",null,"1.130 EUR / ha",null,{"$f":"IF($P$27=\"J\",G58,\"\")","v":""},null,"  ha"]
[]
[null,null,"Ertragsklasse I,5 und besser",null,"990 EUR / ha",null,null,null,"  ha",null,null,null,"Ertragsklasse I,5 und besser",null,"990 EUR / ha",null,{"$f":"IF($P$27=\"J\",G60,\"\")","v":""},null,"  ha"]
[]
[null,null,"bei sonstigen Laubbäumen:",null,null,null,null,null,null,null,null,null,"bei sonstigen Laubbäumen:"]
[null,null,"alle Ertragsklassen",null,"570 EUR / ha",null,null,null,"  ha",null,null,null,"alle Ertragsklassen",null,"570 EUR / ha",null,{"$f":"IF($P$27=\"J\",G63,\"\")","v":""},null,"  ha"]
[]
[null,null,"Gesamter Wertausgleichsbetrag:",null,null,null,{"$f":"IF(G63+G60+G58+G56+G54=0,\" \",G54*1400+G56*1270+G58*1130+G60*990+G63*570)","v":" "},null,"  EUR",null,null,null,"Gesamter Wertausgleichsbetrag:",null,null,null,{"$f":"IF(G65=\" \",\" \",MAX(G65,IF(Q63+Q60+Q58+Q56+Q54=0,\" \",Q54*1400+Q56*1270+Q58*1130+Q60*990+Q63*570)))","v":" "},null,"  EUR"]
[null,null,null,null,null,null,null,null,null,null,null,null,"(maximal der bewilligte Betrag auszuzahlen)"]
[]
[]
[]
[]
[null,null,"Nr. 2.1.3.7 PKW-RL:",null,null,null,null,null,null,null,null,null,"Nr. 2.1.3.7 PKW-RL:"]
[null,null,"Hiebsunreifeentschädigung",null,null,null,null,null,null,null,null,null,"Hiebsunreifeentschädigung"]
[null,null,"Gesamte Entschädigung:",null,null,null,null,null,"  EUR",null,null,null,"Gesamte Entschädigung:",null,null,null,{"$f":"IF($P$29=\"J\",G73,IF($P$29=\"T\",G73,\"\"))","v":""},null,"  EUR"]
[null,null,"(100 % nach Waldbewertungsrichtlinie)",null,null,null,null,null,null,null,null,null,"(100 % nach Waldbewertungsrichtlinie)"]
[]
[]
[null,null,"Nr. 2.1.4 PKW-RL:",null,null,null,null,null,null,null,null,null,"Nr. 2.1.4 PKW-RL:"]
[null,null,"Anzahl der Weisergatter …",null,null,null,"St.",{"$f":"IF(E78+E83=0,\" \",(350*E78))","v":" "},null,null,null,null,"Anzahl der Weisergatter …",null,{"$f":"IF($P$27=\"J\",E78,\" \")","v":" "},null,"St.",{"$f":"IF(O78=\" \",\" \",(350*O78))","v":" "}]
[null,null,"   (im Kö-Wald nicht förderfähig)",null,null,null,null,null,null,null,null,null,"   (im Kö-Wald nicht förderfähig)"]
[]
[]
[null,null,"Nr. 2.1.4 PKW-RL:",null,null,null,null,null,null,null,null,null,"Nr. 2.1.4 PKW-RL:"]
[null,null,"Wildschutzzaun in lfd. M.:",null,null,null,"lfdm.",{"$f":"IF(E83+E102=0,\" \",(7.5*E83))","v":" "},null,null,null,null,"Wildschutzzaun in lfd. M.:",null,{"$f":"IF($P$27=\"J\",E83,\" \")","v":" "},null,"  lfdm.",{"$f":"IF(O83=\" \",\" \",7.5*O83)","v":" "}]
[null,null,"gemäß Nr. 2.1.2.5 PKW-RL bis zu einer Größe von 0,5 Hektar in Gemein-\nschaftsjagden und Angliederungsflächen oder für heimische Laubbaum-\narten in Schutzgebieten.",null,null,null,null,null,null,null,null,null,"gemäß Nr. 2.1.2.5 PKW-RL bis zu einer Größe von 0,5 Hektar in Gemein-\nschaftsjagden und Angliederungsflächen oder für heimische Laubbaum-\narten in Schutzgebieten."]
[]
[]
[]
[null,"  Nur bei FBG-Anträgen: beteiligte Waldbesitzer",null,null,null,null,null,null,"EUR",null,null,"  Nur bei FBG-Anträgen: beteiligte Waldbesitzer",null,null,null,null,null,null,"EUR"]
[]
[null,null,null,null,null,null,null,null,null,null,null,null,{"$f":"IF($P$27=\"J\",C90,\"\")","v":""},null,null,null,null,{"$f":"IF($P$27=\"J\",H90,\"\")","v":""}]
[null,null,null,null,null,null,null,null,null,null,null,null,"",null,null,null,null,{"$f":"IF($P$27=\"J\",H91,\"\")","v":""}]
[null,null,null,null,null,null,null,null,null,null,null,null,"",null,null,null,null,""]
[null,null,null,null,null,null,null,null,null,null,null,null,"",null,null,null,null,""]
[null,null,null,null,null,null,null,null,null,null,null,null,"",null,null,null,null,""]
[null,null,null,null,null,null,null,null,null,null,null,null,"",null,null,null,null,""]
[]
[]
[]
[null,"  II.  STELLUNGNAHME DER LEITUNG DES FBB",null,null,null,null,null,null,null,null,null," II.  STELLUNGNAHME DER LEITUNG DES FBB"]
[]
[null,null,"Fachliche Stellungnahme",null,null,null,null,null,null,null,null,null,"Fachliche Stellungnahme (falls Abweichung)"]
[]
[null,null,"falls Planung nicht durch staatliche(n) Förster(in) erfolgte, \nNamen der forstfachlich qualifizierten Person angeben:",null,null,null,null,null,null,null,null,null,"falls Planung nicht durch staatliche(n) Förster(in) erfolgte, \nNamen der forstfachlich qualifizierten Person angeben:"]
[]
[null,null,"Das beantragte Vorhaben wird von mir für forstfachlich notwendig und zweckmäßig gehalten."]
[]
[]
[null,null,"Ort, Datum",null,null,null,null,null,"Name und Unterschrift d. FBB",null,null,null,"Ort, Datum",null,null,null,null,null,"Name und Unterschrift d. FBB"]
[]
[]
[]
[null,"  Folgende Belege sind beigefügt:",null,null,null,null,null,null,null,null,null,"  Folgende Belege sind beigefügt:"]